[Event "*** Titled Tuesday Blitz"]
[Site "Chess.com"]
[Date "2021.03.30"]
[Round "7"]
[White "DrVitman"]
[Black "bsnsun"]
[Result "1-0"]
[WhiteElo "2633"]
[BlackElo "2476"]
[TimeControl "180+1"]
[EndTime "11:19:47 PDT"]
[Termination "DrVitman won by resignation"]

1. e4 {[%clk 0:03:00]} 1... c5 {[%clk 0:02:59.4]} 2. Nc3 {[%clk 0:02:59.5]} 2...
Nc6 {[%clk 0:02:59.1]} 3. Bb5 {[%clk 0:02:59.1]} 3... Nd4 {[%clk 0:02:57.1]} 4.
Nf3 {[%clk 0:02:59.2]} 4... g6 {[%clk 0:02:56.6]} 5. Nxd4 {[%clk 0:02:55.6]}
5... cxd4 {[%clk 0:02:57.5]} 6. Ne2 {[%clk 0:02:55.3]} 6... Bg7 {[%clk
0:02:57.8]} 7. O-O {[%clk 0:02:54.8]} 7... e5 {[%clk 0:02:55.4]} 8. c3 {[%clk
0:02:54.4]} 8... dxc3 {[%clk 0:02:54.8]} 9. dxc3 {[%clk 0:02:54.5]} 9... Nf6
{[%clk 0:02:52.6]} 10. Qd3 {[%clk 0:02:38.7]} 10... O-O {[%clk 0:02:52.1]} 11.
Bc4 {[%clk 0:02:37.9]} 11... b6 {[%clk 0:02:47.9]} 12. Bg5 {[%clk 0:02:31.7]}
12... Bb7 {[%clk 0:02:46]} 13. Bxf6 {[%clk 0:02:31.8]} 13... Qxf6 {[%clk
0:02:42]} 14. Bd5 {[%clk 0:02:31.9]} 14... Bc6 {[%clk 0:02:42.5]} 15. Rad1
{[%clk 0:02:23.4]} 15... Qe7 {[%clk 0:02:37.9]} 16. g3 {[%clk 0:02:23.1]} 16...
Qc5 {[%clk 0:02:32.1]} 17. Kg2 {[%clk 0:02:22.6]} 17... Kh8 {[%clk 0:02:31.3]}
18. f3 {[%clk 0:02:18.1]} 18... f5 {[%clk 0:02:29.5]} 19. b4 {[%clk 0:02:11.6]}
19... Qe7 {[%clk 0:02:28.6]} 20. Bxc6 {[%clk 0:02:08.5]} 20... dxc6 {[%clk
0:02:28.6]} 21. Qd6 {[%clk 0:02:07.8]} 21... Qxd6 {[%clk 0:02:19.8]} 22. Rxd6
{[%clk 0:02:08.7]} 22... Rac8 {[%clk 0:02:19.6]} 23. Rd7 {[%clk 0:01:51.1]}
23... a5 {[%clk 0:02:17.6]} 24. bxa5 {[%clk 0:01:47]} 24... bxa5 {[%clk
0:02:18.5]} 25. Rb1 {[%clk 0:01:46.7]} 25... Rfd8 {[%clk 0:02:15.4]} 26. Rbb7
{[%clk 0:01:40.4]} 26... Rxd7 {[%clk 0:02:10.6]} 27. Rxd7 {[%clk 0:01:41.3]}
27... Rb8 {[%clk 0:02:08.7]} 28. Kf2 {[%clk 0:01:38]} 28... fxe4 {[%clk
0:02:04.2]} 29. fxe4 {[%clk 0:01:37.6]} 29... Bh6 {[%clk 0:02:04.6]} 30. Ra7
{[%clk 0:01:24.7]} 30... Rb5 {[%clk 0:01:54.7]} 31. a4 {[%clk 0:01:21.5]} 31...
Rc5 {[%clk 0:01:54.6]} 32. Kf3 {[%clk 0:01:21.3]} 32... Kg8 {[%clk 0:01:51.2]}
33. h4 {[%clk 0:01:19.4]} 33... Bd2 {[%clk 0:01:45.9]} 34. Kf2 {[%clk
0:01:13.9]} 34... Bxc3 {[%clk 0:01:21.6]} 35. Nxc3 {[%clk 0:01:13]} 35... Rxc3
{[%clk 0:01:22.2]} 36. Rxa5 {[%clk 0:01:13.5]} 36... Rc4 {[%clk 0:01:22.5]} 37.
Kf3 {[%clk 0:01:08.5]} 37... Rc3+ {[%clk 0:01:18.6]} 38. Kg4 {[%clk 0:01:06.5]}
38... Kg7 {[%clk 0:01:11.9]} 39. Rxe5 {[%clk 0:01:04.5]} 39... h5+ {[%clk
0:01:08.9]} 40. Kf4 {[%clk 0:01:02.8]} 40... Ra3 {[%clk 0:01:07.8]} 41. a5
{[%clk 0:00:55]} 41... Ra1 {[%clk 0:00:53.7]} 42. Re7+ {[%clk 0:00:52.8]} 42...
Kf6 {[%clk 0:00:53]} 43. Rc7 {[%clk 0:00:52.7]} 43... Rxa5 {[%clk 0:00:51.3]}
44. Rxc6+ {[%clk 0:00:52.8]} 44... Kf7 {[%clk 0:00:51.7]} 45. Rd6 {[%clk
0:00:44.2]} 45... Ra1 {[%clk 0:00:50.8]} 46. Kg5 {[%clk 0:00:42.5]} 46... Ra5+
{[%clk 0:00:43.9]} 47. Rd5 {[%clk 0:00:42]} 47... Ra7 {[%clk 0:00:36]} 48. Rd6
{[%clk 0:00:35.4]} 48... Ra5+ {[%clk 0:00:34.9]} 49. Kh6 {[%clk 0:00:34.8]}
49... Re5 {[%clk 0:00:19.5]} 50. Rxg6 {[%clk 0:00:32.6]} 50... Rxe4 {[%clk
0:00:19.9]} 51. Kxh5 {[%clk 0:00:31.5]} 51... Re5+ {[%clk 0:00:20.3]} 52. Rg5
{[%clk 0:00:31.8]} 52... Re6 {[%clk 0:00:19.4]} 53. g4 {[%clk 0:00:29.2]} 53...
Ra6 {[%clk 0:00:19]} 54. Rb5 {[%clk 0:00:28.2]} 54... Kg7 {[%clk 0:00:18.6]} 55.
g5 {[%clk 0:00:27.7]} 55... Rc6 {[%clk 0:00:18]} 56. Rb7+ {[%clk 0:00:27.2]}
56... Kg8 {[%clk 0:00:17.8]} 57. g6 {[%clk 0:00:26.1]} 57... Rc5+ {[%clk
0:00:17]} 58. Kh6 {[%clk 0:00:26]} 58... Rc8 {[%clk 0:00:17]} 59. h5 {[%clk
0:00:23.5]} 59... Ra8 {[%clk 0:00:16.2]} 60. Rc7 {[%clk 0:00:21.5]} 60... Rb8
{[%clk 0:00:16.1]} 61. Re7 {[%clk 0:00:20.8]} 61... Rc8 {[%clk 0:00:16.4]} 62.
Kg5 {[%clk 0:00:19.4]} 62... Rc5+ {[%clk 0:00:16.4]} 63. Kf6 {[%clk 0:00:19.3]}
63... Rc6+ {[%clk 0:00:16.7]} 64. Re6 {[%clk 0:00:19.3]} 64... Rc8 {[%clk
0:00:16.7]} 65. h6 {[%clk 0:00:19.6]} 65... Rf8+ {[%clk 0:00:16.4]} 66. Kg5
{[%clk 0:00:19.7]} 66... Rc8 {[%clk 0:00:16.5]} 67. Ra6 {[%clk 0:00:18.2]} 67...
Rc5+ {[%clk 0:00:15.6]} 68. Kf6 {[%clk 0:00:17.5]} 68... Rc8 {[%clk 0:00:15.6]}
69. Rd6 {[%clk 0:00:12]} 69... Rf8+ {[%clk 0:00:15.8]} 70. Ke7 {[%clk
0:00:11.7]} 70... Rc8 {[%clk 0:00:16.7]} 71. Rd8+ {[%clk 0:00:11.5]} 71... Rxd8
{[%clk 0:00:16.9]} 72. Kxd8 {[%clk 0:00:12.4]} 72... Kh8 {[%clk 0:00:16.4]} 73.
Ke7 {[%clk 0:00:11.9]} 73... Kg8 {[%clk 0:00:17]} 74. g7 {[%clk 0:00:12.2]}
74... Kh7 {[%clk 0:00:17]} 75. Kf7 {[%clk 0:00:12.7]} 75... Kxh6 {[%clk
0:00:17.5]} 76. g8=Q {[%clk 0:00:13.1]} 1-0

[Event "*** Titled Tuesday Blitz"]
[Site "Chess.com"]
[Date "2021.03.30"]
[Round "7"]
[White "KacperPolOK"]
[Black "petincash"]
[Result "1/2-1/2"]
[WhiteElo "2434"]
[BlackElo "2290"]
[TimeControl "180+1"]
[EndTime "11:19:59 PDT"]
[Termination "Game drawn by repetition"]

1. e4 {[%clk 0:03:00.9]} 1... Nc6 {[%clk 0:02:59]} 2. Nf3 {[%clk 0:02:56.2]}
2... e5 {[%clk 0:02:50.9]} 3. Bc4 {[%clk 0:02:54.3]} 3... Bc5 {[%clk 0:02:47.8]}
4. O-O {[%clk 0:02:53.7]} 4... Nf6 {[%clk 0:02:46.4]} 5. d4 {[%clk 0:02:52.6]}
5... Bxd4 {[%clk 0:02:45]} 6. Nxd4 {[%clk 0:02:50]} 6... Nxd4 {[%clk 0:02:44.6]}
7. Bg5 {[%clk 0:02:50.1]} 7... d6 {[%clk 0:02:29.5]} 8. f4 {[%clk 0:02:49.5]}
8... Bg4 {[%clk 0:02:22.7]} 9. Bxf6 {[%clk 0:02:29.3]} 9... Bxd1 {[%clk
0:02:19.7]} 10. Bxd8 {[%clk 0:02:29.1]} 10... Rxd8 {[%clk 0:02:05.1]} 11. Rxd1
{[%clk 0:02:28.5]} 11... Nxc2 {[%clk 0:02:03.4]} 12. Nc3 {[%clk 0:02:27.3]}
12... Nxa1 {[%clk 0:02:02.9]} 13. Rxa1 {[%clk 0:02:28.2]} 13... c6 {[%clk
0:02:00.2]} 14. Kf2 {[%clk 0:02:23.7]} 14... Ke7 {[%clk 0:01:55.5]} 15. g3
{[%clk 0:02:19.9]} 15... h5 {[%clk 0:01:51.4]} 16. h4 {[%clk 0:02:18]} 16... b5
{[%clk 0:01:40.6]} 17. Bb3 {[%clk 0:02:16.4]} 17... Rb8 {[%clk 0:01:29.9]} 18.
Kf3 {[%clk 0:02:09.7]} 18... a5 {[%clk 0:01:29.3]} 19. Nd1 {[%clk 0:01:49.1]}
19... g6 {[%clk 0:00:51.5]} 20. Ne3 {[%clk 0:01:49]} 20... a4 {[%clk 0:00:44.1]}
21. Bc2 {[%clk 0:01:41.6]} 21... Rb7 {[%clk 0:00:34.9]} 22. Rc1 {[%clk
0:01:39.1]} 22... Ra8 {[%clk 0:00:31.6]} 23. Bd3 {[%clk 0:01:32.4]} 23... Rb6
{[%clk 0:00:31.2]} 24. g4 {[%clk 0:01:21.8]} 24... hxg4+ {[%clk 0:00:30.5]} 25.
Nxg4 {[%clk 0:01:20.8]} 25... exf4 {[%clk 0:00:30.2]} 26. Kxf4 {[%clk
0:01:21.3]} 26... Rh8 {[%clk 0:00:28.5]} 27. Kg3 {[%clk 0:01:16.2]} 27... Rh5
{[%clk 0:00:28.5]} 28. Rf1 {[%clk 0:01:13.9]} 28... Rb8 {[%clk 0:00:18.5]} 29.
Rf2 {[%clk 0:01:03]} 29... a3 {[%clk 0:00:17.8]} 30. b4 {[%clk 0:00:58.7]} 30...
Rbh8 {[%clk 0:00:14]} 31. Rh2 {[%clk 0:00:56]} 31... f5 {[%clk 0:00:14]} 32.
exf5 {[%clk 0:00:47.7]} 32... gxf5 {[%clk 0:00:14.9]} 33. Nf2 {[%clk 0:00:47.5]}
33... Rg8+ {[%clk 0:00:14.3]} 34. Kf3 {[%clk 0:00:47]} 34... Kf6 {[%clk
0:00:12.8]} 35. Rh1 {[%clk 0:00:45.7]} 35... Rgh8 {[%clk 0:00:12.8]} 36. Rc1
{[%clk 0:00:42]} 36... Rxh4 {[%clk 0:00:09.2]} 37. Rxc6 {[%clk 0:00:41.7]} 37...
Rxb4 {[%clk 0:00:09.5]} 38. Rxd6+ {[%clk 0:00:40.9]} 38... Ke5 {[%clk
0:00:09.7]} 39. Rc6 {[%clk 0:00:39.6]} 39... Rd8 {[%clk 0:00:08.5]} 40. Rc5+
{[%clk 0:00:38.9]} 40... Kd4 {[%clk 0:00:07.1]} 41. Rxf5 {[%clk 0:00:36.3]}
41... Kc3 {[%clk 0:00:06.4]} 42. Rc5+ {[%clk 0:00:34]} 42... Kb2 {[%clk
0:00:06]} 43. Rc2+ {[%clk 0:00:34.3]} 43... Ka1 {[%clk 0:00:05.3]} 44. Ke3
{[%clk 0:00:34.2]} 44... Rb2 {[%clk 0:00:04.7]} 45. Rc1+ {[%clk 0:00:31.3]}
45... Kxa2 {[%clk 0:00:05.2]} 46. Bxb5 {[%clk 0:00:31.6]} 46... Rxb5 {[%clk
0:00:03.3]} 47. Nd3 {[%clk 0:00:28.4]} 47... Rb3 {[%clk 0:00:03.5]} 48. Kd2
{[%clk 0:00:20.9]} 48... Rbxd3+ {[%clk 0:00:03]} 49. Kc2 {[%clk 0:00:21.5]}
49... Rc3+ {[%clk 0:00:02.8]} 50. Kxc3 {[%clk 0:00:21]} 50... Rc8+ {[%clk
0:00:03.2]} 51. Kd2 {[%clk 0:00:21.3]} 51... Rd8+ {[%clk 0:00:01.8]} 52. Kc2
{[%clk 0:00:21.6]} 52... Re8 {[%clk 0:00:01.2]} 53. Rh1 {[%clk 0:00:20.4]} 53...
Rc8+ {[%clk 0:00:01.7]} 54. Kd3 {[%clk 0:00:18]} 54... Kb2 {[%clk 0:00:01.9]}
55. Rh2+ {[%clk 0:00:16.8]} 55... Kb3 {[%clk 0:00:02.1]} 56. Rh7 {[%clk
0:00:16.2]} 56... Rd8+ {[%clk 0:00:02.5]} 57. Ke2 {[%clk 0:00:16.7]} 57... a2
{[%clk 0:00:01.5]} 58. Rb7+ {[%clk 0:00:16.6]} 58... Kc2 {[%clk 0:00:01.9]} 59.
Rc7+ {[%clk 0:00:17]} 59... Kb2 {[%clk 0:00:02.4]} 60. Rb7+ {[%clk 0:00:17.4]}
60... Ka1 {[%clk 0:00:02.5]} 61. Rb6 {[%clk 0:00:17.9]} 61... Rd5 {[%clk
0:00:02.6]} 62. Rb7 {[%clk 0:00:17.1]} 62... Rd6 {[%clk 0:00:02.3]} 63. Rb8
{[%clk 0:00:17.1]} 63... Rd7 {[%clk 0:00:02.7]} 64. Rb6 {[%clk 0:00:17.2]} 64...
Rd5 {[%clk 0:00:03.2]} 65. Rb7 {[%clk 0:00:17.5]} 65... Rh5 {[%clk 0:00:03.2]}
66. Kd2 {[%clk 0:00:17.3]} 66... Rh2+ {[%clk 0:00:03.5]} 67. Kc1 {[%clk
0:00:17.5]} 67... Rh1+ {[%clk 0:00:03.1]} 68. Kc2 {[%clk 0:00:17.7]} 68... Rh3
{[%clk 0:00:02.9]} 69. Rb8 {[%clk 0:00:17.3]} 69... Rh2+ {[%clk 0:00:03.4]} 70.
Kc3 {[%clk 0:00:16.5]} 70... Rh1 {[%clk 0:00:03.3]} 71. Rb7 {[%clk 0:00:15.3]}
71... Rh3+ {[%clk 0:00:03.4]} 72. Kc2 {[%clk 0:00:15]} 72... Rh2+ {[%clk
0:00:03.9]} 73. Kc1 {[%clk 0:00:15.2]} 73... Rh1+ {[%clk 0:00:03.9]} 74. Kc2
{[%clk 0:00:15.8]} 74... Rb1 {[%clk 0:00:03.1]} 75. Rh7 {[%clk 0:00:15.3]} 75...
Rb6 {[%clk 0:00:03.1]} 76. Rh1+ {[%clk 0:00:14.3]} 76... Rb1 {[%clk 0:00:03.6]}
77. Rh7 {[%clk 0:00:15.2]} 77... Rb2+ {[%clk 0:00:03.8]} 78. Kc3 {[%clk
0:00:15.1]} 78... Rb1 {[%clk 0:00:03.9]} 79. Kc2 {[%clk 0:00:13.5]} 1/2-1/2

[Event "*** Titled Tuesday Blitz"]
[Site "Chess.com"]
[Date "2021.03.30"]
[Round "7"]
[White "sganerdene"]
[Black "anasta10"]
[Result "0-1"]
[WhiteElo "2604"]
[BlackElo "2504"]
[TimeControl "180+1"]
[EndTime "11:20:00 PDT"]
[Termination "anasta10 won by resignation"]

1. e4 {[%clk 0:03:00.9]} 1... e6 {[%clk 0:02:57.3]} 2. d4 {[%clk 0:03:00.6]}
2... d5 {[%clk 0:02:57.5]} 3. Nc3 {[%clk 0:03:01.2]} 3... Bb4 {[%clk 0:02:56.8]}
4. exd5 {[%clk 0:03:01.5]} 4... exd5 {[%clk 0:02:55.6]} 5. Bd3 {[%clk 0:03:02]}
5... Ne7 {[%clk 0:02:53.8]} 6. Ne2 {[%clk 0:03:02.5]} 6... Bf5 {[%clk
0:02:54.3]} 7. O-O {[%clk 0:03:02.5]} 7... Nbc6 {[%clk 0:02:54]} 8. Bg5 {[%clk
0:03:02.5]} 8... Qd7 {[%clk 0:02:52.6]} 9. Ng3 {[%clk 0:02:54.6]} 9... Bxd3
{[%clk 0:02:31.7]} 10. Qxd3 {[%clk 0:02:55.5]} 10... f6 {[%clk 0:02:31.1]} 11.
Bf4 {[%clk 0:02:53.1]} 11... Bxc3 {[%clk 0:02:26.8]} 12. Qxc3 {[%clk 0:02:46.9]}
12... O-O-O {[%clk 0:02:22.9]} 13. b4 {[%clk 0:02:44]} 13... g5 {[%clk
0:02:22.9]} 14. Be3 {[%clk 0:02:39.8]} 14... Nf5 {[%clk 0:02:04.7]} 15. Nxf5
{[%clk 0:02:39.9]} 15... Qxf5 {[%clk 0:02:04.4]} 16. b5 {[%clk 0:02:40.5]} 16...
Ne7 {[%clk 0:02:03.6]} 17. a4 {[%clk 0:02:40.2]} 17... Kb8 {[%clk 0:02:02.7]}
18. a5 {[%clk 0:02:40.4]} 18... Rc8 {[%clk 0:01:54.2]} 19. Qb4 {[%clk
0:02:39.6]} 19... Ng6 {[%clk 0:01:45.5]} 20. b6 {[%clk 0:02:33.8]} 20... a6
{[%clk 0:01:39.7]} 21. bxc7+ {[%clk 0:02:31.7]} 21... Rxc7 {[%clk 0:01:40.6]}
22. Rab1 {[%clk 0:02:25.2]} 22... Nh4 {[%clk 0:01:06.1]} 23. Qd6 {[%clk
0:01:51.5]} 23... Qe4 {[%clk 0:00:41.7]} 24. Qg3 {[%clk 0:01:47.5]} 24... Nf5
{[%clk 0:00:34.1]} 25. Qh3 {[%clk 0:01:47.3]} 25... h5 {[%clk 0:00:30.5]} 26.
Bd2 {[%clk 0:01:29.1]} 26... Nxd4 {[%clk 0:00:15.8]} 27. Rfe1 {[%clk 0:01:16.6]}
27... Qxc2 {[%clk 0:00:10.6]} 28. Bb4 {[%clk 0:01:14.3]} 28... Ne2+ {[%clk
0:00:08.2]} 29. Kh1 {[%clk 0:01:08.2]} 29... Nf4 {[%clk 0:00:08.8]} 30. Qf3
{[%clk 0:01:07]} 30... Rd8 {[%clk 0:00:06.2]} 31. Red1 {[%clk 0:00:42.3]} 31...
Qf5 {[%clk 0:00:04.1]} 32. g3 {[%clk 0:00:35.9]} 32... d4 {[%clk 0:00:04.4]} 33.
gxf4 {[%clk 0:00:35.4]} 33... g4 {[%clk 0:00:05.1]} 34. Qg2 {[%clk 0:00:33.2]}
34... Qxf4 {[%clk 0:00:05.3]} 35. Bd2 {[%clk 0:00:33.6]} 35... Qf5 {[%clk
0:00:05.4]} 36. Rb6 {[%clk 0:00:29]} 36... Rdd7 {[%clk 0:00:05.2]} 37. Bb4
{[%clk 0:00:27.1]} 37... Kc8 {[%clk 0:00:05.3]} 38. Bd6 {[%clk 0:00:22.7]} 38...
Rc2 {[%clk 0:00:04.4]} 39. Bg3 {[%clk 0:00:22.7]} 39... Kd8 {[%clk 0:00:02.9]}
40. Rb3 {[%clk 0:00:21.1]} 40... Ke8 {[%clk 0:00:03]} 41. Rbd3 {[%clk
0:00:21.1]} 41... Kf7 {[%clk 0:00:03]} 42. Kg1 {[%clk 0:00:19.9]} 42... Kg6
{[%clk 0:00:03.3]} 43. Qf1 {[%clk 0:00:19.8]} 43... Rc5 {[%clk 0:00:03.2]} 44.
Rxd4 {[%clk 0:00:19.6]} 44... Rxd4 {[%clk 0:00:03.1]} 45. Rxd4 {[%clk
0:00:20.5]} 45... Rxa5 {[%clk 0:00:03.9]} 46. Rd1 {[%clk 0:00:20.1]} 46... Rb5
{[%clk 0:00:04.4]} 47. Qe2 {[%clk 0:00:20.2]} 47... a5 {[%clk 0:00:04.6]} 48.
Qe8+ {[%clk 0:00:20.3]} 48... Kg5 {[%clk 0:00:03.9]} 49. Qg8+ {[%clk 0:00:20]}
49... Qg6 {[%clk 0:00:03.9]} 50. Qf8 {[%clk 0:00:20.1]} 50... Rf5 {[%clk
0:00:03.2]} 51. Kg2 {[%clk 0:00:17.2]} 51... h4 {[%clk 0:00:03.7]} 52. Bb8
{[%clk 0:00:15]} 52... a4 {[%clk 0:00:03.8]} 53. Qa3 {[%clk 0:00:13.4]} 53...
Rf3 {[%clk 0:00:03.4]} 54. Qxa4 {[%clk 0:00:12.6]} 54... Qf5 {[%clk 0:00:02.5]}
55. Qd4 {[%clk 0:00:11.3]} 55... h3+ {[%clk 0:00:03.4]} 56. Kg1 {[%clk
0:00:11.1]} 56... b5 {[%clk 0:00:03.9]} 57. Qd2+ {[%clk 0:00:09.7]} 57... Kh5
{[%clk 0:00:03.7]} 58. Qd5 {[%clk 0:00:09.7]} 58... b4 {[%clk 0:00:03.4]} 59.
Qxf5+ {[%clk 0:00:10]} 59... Rxf5 {[%clk 0:00:04.3]} 60. Rb1 {[%clk 0:00:09.6]}
60... Rb5 {[%clk 0:00:04.6]} 61. Bd6 {[%clk 0:00:10]} 61... b3 {[%clk
0:00:05.1]} 62. Kf1 {[%clk 0:00:10.5]} 62... Kg6 {[%clk 0:00:05.6]} 63. Ke2
{[%clk 0:00:10.9]} 63... Kf5 {[%clk 0:00:06.3]} 64. Bg3 {[%clk 0:00:10.8]} 64...
Ke4 {[%clk 0:00:06.5]} 65. Kd2 {[%clk 0:00:11.3]} 65... Kf3 {[%clk 0:00:06.6]}
66. Kc3 {[%clk 0:00:10.5]} 66... f5 {[%clk 0:00:07.1]} 67. Rxb3 {[%clk
0:00:03.6]} 67... Rxb3+ {[%clk 0:00:08]} 68. Kxb3 {[%clk 0:00:04.5]} 68... f4
{[%clk 0:00:08.6]} 69. Bh4 {[%clk 0:00:04.9]} 69... Kg2 {[%clk 0:00:08]} 70. Bg5
{[%clk 0:00:05.3]} 70... Kxh2 {[%clk 0:00:06.5]} 71. Bxf4+ {[%clk 0:00:05.4]}
71... Kg2 {[%clk 0:00:07.2]} 72. Bg3 {[%clk 0:00:04.2]} 72... h2 {[%clk
0:00:07.6]} 73. Bxh2 {[%clk 0:00:04.6]} 73... Kxh2 {[%clk 0:00:07.8]} 74. f4
{[%clk 0:00:05.1]} 74... gxf3 {[%clk 0:00:07.3]} 0-1

[Event "*** Titled Tuesday Blitz"]
[Site "Chess.com"]
[Date "2021.03.30"]
[Round "7"]
[White "kuba2006"]
[Black "NishaOnYoutube"]
[Result "1-0"]
[WhiteElo "2346"]
[BlackElo "2182"]
[TimeControl "180+1"]
[EndTime "11:20:04 PDT"]
[Termination "kuba2006 won on time"]

1. e4 {[%clk 0:03:00.9]} 1... Nf6 {[%clk 0:02:59.4]} 2. e5 {[%clk 0:03:00.1]}
2... Nd5 {[%clk 0:02:59.3]} 3. d4 {[%clk 0:02:59.6]} 3... Nb6 {[%clk 0:02:59.2]}
4. c4 {[%clk 0:02:50.5]} 4... d6 {[%clk 0:02:58]} 5. exd6 {[%clk 0:02:50.3]}
5... cxd6 {[%clk 0:02:57.3]} 6. Nc3 {[%clk 0:02:50.4]} 6... g6 {[%clk
0:02:57.4]} 7. Be3 {[%clk 0:02:49.8]} 7... Bg7 {[%clk 0:02:58]} 8. b3 {[%clk
0:02:45.2]} 8... O-O {[%clk 0:02:43.8]} 9. Rc1 {[%clk 0:02:44.1]} 9... Bf5
{[%clk 0:02:39.1]} 10. Nf3 {[%clk 0:02:43.2]} 10... d5 {[%clk 0:02:28.2]} 11. c5
{[%clk 0:02:38.6]} 11... Nc8 {[%clk 0:02:27.7]} 12. Bd3 {[%clk 0:02:31.7]} 12...
Bg4 {[%clk 0:02:27]} 13. h3 {[%clk 0:02:30.7]} 13... Bxf3 {[%clk 0:02:25.4]} 14.
Qxf3 {[%clk 0:02:31.6]} 14... e6 {[%clk 0:02:26.2]} 15. O-O {[%clk 0:02:30.7]}
15... Nc6 {[%clk 0:02:26.4]} 16. Ne2 {[%clk 0:02:18.8]} 16... N8e7 {[%clk
0:02:16.8]} 17. Qg3 {[%clk 0:02:11.6]} 17... Nf5 {[%clk 0:02:09.4]} 18. Bxf5
{[%clk 0:02:10.1]} 18... exf5 {[%clk 0:02:10.3]} 19. Rfd1 {[%clk 0:01:59.7]}
19... Re8 {[%clk 0:02:06.4]} 20. Nc3 {[%clk 0:01:57.6]} 20... a6 {[%clk
0:01:33.6]} 21. b4 {[%clk 0:01:42.9]} 21... Qd7 {[%clk 0:01:24.5]} 22. Rb1
{[%clk 0:01:32.9]} 22... Rad8 {[%clk 0:01:18.3]} 23. a4 {[%clk 0:01:31.8]} 23...
Qe6 {[%clk 0:01:06.6]} 24. b5 {[%clk 0:01:03]} 24... axb5 {[%clk 0:01:00.9]} 25.
axb5 {[%clk 0:00:41.3]} 25... Na5 {[%clk 0:01:00.2]} 26. Bf4 {[%clk 0:00:40.3]}
26... Nc4 {[%clk 0:00:53.8]} 27. c6 {[%clk 0:00:35.8]} 27... bxc6 {[%clk
0:00:52.4]} 28. b6 {[%clk 0:00:35.9]} 28... Nd6 {[%clk 0:00:24]} 29. Bxd6 {[%clk
0:00:16.6]} 29... Qxd6 {[%clk 0:00:22.8]} 30. Qxd6 {[%clk 0:00:16.4]} 30... Rxd6
{[%clk 0:00:22.6]} 31. b7 {[%clk 0:00:16]} 31... Rb8 {[%clk 0:00:22.5]} 32. Na4
{[%clk 0:00:15.8]} 32... Rd7 {[%clk 0:00:14.6]} 33. Nc5 {[%clk 0:00:15.2]} 33...
Re7 {[%clk 0:00:11.7]} 34. Rb6 {[%clk 0:00:06]} 34... Bf8 {[%clk 0:00:09.9]} 35.
Rxc6 {[%clk 0:00:05.2]} 35... Rexb7 {[%clk 0:00:09.9]} 36. Nxb7 {[%clk
0:00:05.3]} 36... Rxb7 {[%clk 0:00:10.6]} 37. Rc8 {[%clk 0:00:05.8]} 37... Kg7
{[%clk 0:00:10.3]} 38. Rd8 {[%clk 0:00:06.1]} 38... Rb5 {[%clk 0:00:10]} 39. Re1
{[%clk 0:00:06.2]} 39... Bb4 {[%clk 0:00:09.3]} 40. Re5 {[%clk 0:00:04.9]} 40...
Bc3 {[%clk 0:00:09.1]} 41. Rexd5 {[%clk 0:00:04.6]} 41... Rb1+ {[%clk
0:00:08.8]} 42. Kh2 {[%clk 0:00:04.2]} 42... Bd2 {[%clk 0:00:09.7]} 43. g3
{[%clk 0:00:03.9]} 43... Rb2 {[%clk 0:00:09.3]} 44. Re5 {[%clk 0:00:02.7]} 44...
h5 {[%clk 0:00:08.8]} 45. Kg2 {[%clk 0:00:02.9]} 45... Bc3 {[%clk 0:00:08.3]}
46. Re7 {[%clk 0:00:01.4]} 46... Rc2 {[%clk 0:00:07.9]} 47. Ree8 {[%clk
0:00:01.6]} 47... Kf6 {[%clk 0:00:07.7]} 48. d5 {[%clk 0:00:02.1]} 48... Bd4
{[%clk 0:00:07]} 49. d6 {[%clk 0:00:02.5]} 49... Rxf2+ {[%clk 0:00:07]} 50. Kh1
{[%clk 0:00:03]} 50... Rf1+ {[%clk 0:00:07.2]} 51. Kg2 {[%clk 0:00:03.6]} 51...
Rf2+ {[%clk 0:00:07.6]} 52. Kg1 {[%clk 0:00:04]} 52... Rd2+ {[%clk 0:00:05.8]}
53. Kf1 {[%clk 0:00:03.9]} 53... Rf2+ {[%clk 0:00:05.7]} 54. Ke1 {[%clk
0:00:04.3]} 54... Rb2 {[%clk 0:00:05.3]} 55. d7 {[%clk 0:00:04.6]} 55... Bc3+
{[%clk 0:00:05.2]} 56. Kd1 {[%clk 0:00:04.5]} 56... Rd2+ {[%clk 0:00:05.3]} 57.
Kc1 {[%clk 0:00:04.8]} 57... Rd6 {[%clk 0:00:03.7]} 58. Rf8 {[%clk 0:00:04]}
58... Ba5 {[%clk 0:00:03.1]} 59. Ra8 {[%clk 0:00:03.1]} 59... Bd2+ {[%clk
0:00:01.4]} 60. Kc2 {[%clk 0:00:03.5]} 60... Rxd7 {[%clk 0:00:02.3]} 61. Rfd8
{[%clk 0:00:03]} 61... Rxd8 {[%clk 0:00:01.4]} 62. Rxd8 {[%clk 0:00:03.9]} 62...
Be3 {[%clk 0:00:01.8]} 63. Rd3 {[%clk 0:00:04.4]} 63... Bc5 {[%clk 0:00:01.4]}
64. Kd1 {[%clk 0:00:04.9]} 64... Kg5 {[%clk 0:00:01.5]} 65. Ke2 {[%clk
0:00:05.2]} 65... h4 {[%clk 0:00:01.7]} 66. Kf3 {[%clk 0:00:04.6]} 66... hxg3
{[%clk 0:00:01.3]} 67. Kxg3 {[%clk 0:00:05.5]} 67... Bb6 {[%clk 0:00:01.8]} 68.
Kf3 {[%clk 0:00:05.3]} 68... Bc7 {[%clk 0:00:01.8]} 69. Rd7 {[%clk 0:00:05.4]}
69... Be5 {[%clk 0:00:02.1]} 70. Rxf7 {[%clk 0:00:05.5]} 70... Bd4 {[%clk
0:00:02.2]} 71. Rh7 {[%clk 0:00:05.4]} 71... Bc3 {[%clk 0:00:01.8]} 72. h4+
{[%clk 0:00:05.6]} 72... Kf6 {[%clk 0:00:01.6]} 73. Rc7 {[%clk 0:00:06]} 73...
Bd4 {[%clk 0:00:01.1]} 74. Rc6+ {[%clk 0:00:06.9]} 1-0